Cogmind - Beta 12 *** ADVENTURER MODE // 2023.04.05 @ 21:57:32 Player: whjms Result: Destroyed by D-53 Grenadier with Mini Grenade Launcher Performance ------------- Evolutions (0) 0 Regions Visited (4) 800 Robots Destroyed (6) 30 Value Destroyed (191) 191 Prototype IDs (0) 0 Alien Tech Used (0) 0 Bonus (300) 300 TOTAL SCORE: 1321 Bonus ------- Aligned with FarCom 300 Cogmind --------- Core Integrity 0/250 Matter 280/400 Energy 98/100 System Corruption 0% Temperature Hot (246) Movement Core (50) Location -9/Mines Parts ------- > --- POWER (1) -------- (None) > --- PROPULSION (2) --- (None) > --- UTILITY (2) ------ Medium Matter Pod > --- WEAPON (2) ------- (None) > --- INVENTORY (5) ---- Ion Engine Peak State ------------ > --- POWER ------------ Light Nuclear Core > --- PROPULSION ------- Aluminum Leg Aluminum Leg > --- UTILITY ---------- Medium Matter Pod Targeting Computer > --- WEAPON ----------- Small Laser Particle Gun > --- INVENTORY -------- Ion Engine [Rating: 10] Favorites ----------- Power Light Nuclear Core Engine Ion Engine Power Core Light Nuclear Core Propulsion Aluminum Leg Leg Aluminum Leg Utility Medium Matter Pod Device Terrain Scanner Storage Medium Matter Pod Processor Targeting Computer Weapon Small Laser Energy Gun Small Laser Ballistic Gun Light Assault Rifle Build | -11 -10 -10 -10 -9 ------- Run | Jun Mat Min Exi Min Slots Evolved . | . . . . . Power . | . . . . . Propulsion . | . . . . . Utility . | . . . . . Weapon . | . . . . . Parts Attached 16 | 5 10 1 . . Power 3 | 1 2 . . . Engine 2 | 1 1 . . . Core 1 | . 1 . . . Reactor . | . . . . . Propulsion 5 | 2 3 . . . Treads . | . . . . . Leg 5 | 2 3 . . . Wheel . | . . . . . Hover . | . . . . . Flight . | . . . . . Utility 4 | . 3 1 . . Device 1 | . . 1 . . Storage 1 | . 1 . . . Processor 2 | . 2 . . . Hackware . | . . . . . Protection . | . . . . . Artifact . | . . . . . Weapon 4 | 2 2 . . . Energy Gun 3 | 1 2 . . . Energy Cannon . | . . . . . Ballistic Gun 1 | 1 . . . . Ballistic Cannon . | . . . . . Launcher . | . . . . . Special Weapon . | . . . . . Impact Weapon . | . . . . . Slashing Weapon . | . . . . . Piercing Weapon . | . . . . . Special Melee Weapon . | . . . . . Unidentified Prototypes . | . . . . . Parts Lost 7 | . 1 . . 6 Power 1 | . . . . 1 Propulsion 3 | . 1 . . 2 Utility 1 | . . . . 1 Weapon 2 | . . . . 2 Highest Loss Streak 6 | . 1 . . 6 To Critical Strikes . | . . . . . Average Slot Usage (%) 94 | . 76 100 100 91 Engine 2 | . 11 . . . Core 11 | . 1 14 14 14 Leg 27 | . 26 28 28 19 Device 9 | . . 4 14 14 Storage 10 | . . 14 14 14 Processor 4 | . 14 9 . . Energy Gun 25 | . 17 28 28 28 Naked Turns . | . . . . . Heaviest Build 12 | 7 11 12 12 12 Greatest Support 20 | 20 20 20 20 20 Greatest Overweight (x) 3 | . 1 . . 3 Average Overweight (x) . | . . . . . Largest Inventory Capacity 5 | 5 5 5 5 5 Average Capacity 5 | 5 5 5 5 5 Most Carried 4 | 3 4 2 1 1 Average Carried . | . . 1 1 1 Final Capacity 5 | 5 5 5 5 5 Final Carried 1 | . 1 1 1 1 Class Distribution -------------------- 96% | Mutant 3% | Skirmisher Dominant Class ---------------- Mutant | -10/Materials Mutant | -10/Mines Mutant | -10/Exiles Skirmisher | -9/Mines Resources | -11 -10 -10 -10 -9 ----------- Run | Jun Mat Min Exi Min Matter Collected 364 | 170 166 17 . 11 Remotely . | . . . . . Salvage Created 268 | . 242 . . 26 Parts 5 | . 5 . . . Haulers Intercepted . | . . . . . Recyclers Shooed . | . . . . . Parts Field Recycled . | . . . . . Retrieved Matter . | . . . . . Parts Self-Destructed . | . . . . . Prevented . | . . . . . Kills | -11 -10 -10 -10 -9 ------- Run | Jun Mat Min Exi Min Combat Hostiles Destroyed 6 | . 4 . . 2 Guns 6 | . 4 . . 2 Classes Destroyed 4 | . 3 . . 1 Mechanic 1 | . 1 . . . Watcher 1 | . 1 . . . Grunt 4 | . 4 . . . Assembled 2 | . . . . 2 Best Kill Streak 2 | . 2 . . 2 Combat Bots Only 2 | . 1 . . 2 Max Kills in Single Turn 2 | . 2 . . 1 Gunslinging . | . . . . . Exploded . | . . . . . Melee . | . . . . . Uniques/NPCs Destroyed . | . . . . . Combat | -11 -10 -10 -10 -9 -------- Run | Jun Mat Min Exi Min Damage Taken 715 | . 369 . . 346 Core 255 | . 118 . . 137 Absorbed by Shields . | . . . . . Core Remaining (%) 100 | 100 . . . . Volleys Fired 43 | . 36 . . 7 Largest 2 | . 2 . . 2 Hottest 105 | . 105 . . 105 Shots Fired 59 | . 45 . . 14 Gun 59 | . 45 . . 14 Cannon . | . . . . . Launcher . | . . . . . Special . | . . . . . Kinetic 1 | . 1 . . . Thermal 58 | . 44 . . 14 Explosive . | . . . . . Electromagnetic . | . . . . . Robot Hit Streak 29 | . 29 . . 4 Robot Miss Streak 2 | . 1 . . 2 Penetration Max . | . . . . . Secondary Targets 3 | . 1 . . 2 Max Gunslinging Chain 1 | . 1 . . 1 Shots Hit Robots 48 | . 38 . . 10 Core Hits 20 | . 14 . . 6 Critical Kills . | . . . . . Critical Parts Destroyed . | . . . . . Critical Strikes 1 | . 1 . . . Burn 1 | . 1 . . . Melee Attacks . | . . . . . Impact . | . . . . . Slashing . | . . . . . Piercing . | . . . . . Sneak Attacks . | . . . . . Combat Hostiles . | . . . . . Follow-up Attacks . | . . . . . Damage Inflicted 623 | . 486 . . 137 Guns 623 | . 486 . . 137 Cannons . | . . . . . Explosions . | . . . . . Melee . | . . . . . Ramming . | . . . . . Kinetic 8 | . 8 . . . Thermal 615 | . 478 . . 137 Explosive . | . . . . . Electromagnetic . | . . . . . Impact . | . . . . . Slashing . | . . . . . Piercing . | . . . . . Highest Corruption . | . . . . . Average Corruption . | . . . . . Corruption Purged . | . . . . . Corruption Blocked . | . . . . . Overload Shots . | . . . . . Overflow Damage . | . . . . . Projectiles . | . . . . . Explosions . | . . . . . Melee . | . . . . . Knockbacks . | . . . . . Impact . | . . . . . Kinetic . | . . . . . Secondary . | . . . . . Self-Inflicted Damage . | . . . . . Shots . | . . . . . Rammed . | . . . . . Targets Rammed . | . . . . . Kicked . | . . . . . Crushed . | . . . . . Highest Temperature 402 | . 306 . . 402 Average Temperature 132 | . 109 . . 218 Received Heat Transfer 376 | . 276 . . 100 Effects 7 | . 6 . . 1 Energy Bleed 1 | . 1 . . . Interference 4 | . 4 . . . Matter Decay 1 | . . . . 1 Short Circuit 1 | . 1 . . . Siege Activations . | . . . . . Robots Corrupted . | . . . . . Combat Hostiles . | . . . . . Parts Fried . | . . . . . Impact Corruptions . | . . . . . Robots Melted . | . . . . . Combat Hostiles . | . . . . . Parts Melted 4 | . 4 . . . Heat Transferred 1490 | . 1180 . . 310 Parts Sabotaged . | . . . . . Parts Stolen . | . . . . . Parts Stripped . | . . . . . Power Chain Reactions . | . . . . . Missiles Intercepted . | . . . . . Alert | -11 -10 -10 -10 -9 ------- Run | Jun Mat Min Exi Min Peak Influence 117 | . 117 38 . 15 Initial 38 | . . 38 . . Average 28 | . 34 38 . . Maximum Alert Level . | . . . . . Low Security (%) 100 | 100 100 100 . 100 Level 1 . | . . . . . Level 2 . | . . . . . Level 3 . | . . . . . Level 4 . | . . . . . Level 5 . | . . . . . High Security . | . . . . . Max Security . | . . . . . Squads Dispatched . | . . . . . Investigation . | . . . . . Extermination . | . . . . . Reinforcement . | . . . . . Assault . | . . . . . Garrison . | . . . . . Intercept . | . . . . . Searches Triggered . | . . . . . Construction Impeded . | . . . . . Haulers Reinforced . | . . . . . Active Scanning Responses . | . . . . . Cargo Convoy Interrupts . | . . . . . Stealth | -11 -10 -10 -10 -9 --------- Run | Jun Mat Min Exi Min Distress Signals . | . . . . . Communications Jammed . | . . . . . Distress Signals . | . . . . . Times Spotted 14 | . 5 . . 9 Peak Tracking Total 8 | . 2 . . 8 Tactical Retreats . | . . . . . Traps | -11 -10 -10 -10 -9 ------- Run | Jun Mat Min Exi Min Traps Triggered 2 | . 2 . . . Indirectly . | . . . . . Trap Hack Attempts . | . . . . . Triggered . | . . . . . Disarmed . | . . . . . Reprogrammed . | . . . . . Reused . | . . . . . Traps Extracted . | . . . . . Installed . | . . . . . Triggered . | . . . . . Machines | -11 -10 -10 -10 -9 ---------- Run | Jun Mat Min Exi Min Machines Disabled . | . . . . . Max in Single Turn . | . . . . . Machines Repaired . | . . . . . Machines Sabotaged . | . . . . . Overloaded Fab Kills . | . . . . . Hacking | -11 -10 -10 -10 -9 --------- Run | Jun Mat Min Exi Min Machines Accessed 1 | . . . 1 . Terminals . | . . . . . Fabricators . | . . . . . Repair Stations . | . . . . . Recycling Units . | . . . . . Scanalyzers . | . . . . . Garrison Access . | . . . . . Total Hacks 1 | . . . 1 . Successful 1 | . . . 1 . Failed . | . . . . . Catastrophic . | . . . . . Database Lockouts . | . . . . . Manual . | . . . . . Terminals . | . . . . . Fabricators . | . . . . . Repair Stations . | . . . . . Recycling Units . | . . . . . Scanalyzers . | . . . . . Garrison Access . | . . . . . Terminal Hacks 1 | . . . 1 . Record 1 | . . . 1 . Fabricator Hacks . | . . . . . Repair Station Hacks . | . . . . . Recycling Unit Hacks . | . . . . . Scanalyzer . | . . . . . Garrison Access Hacks . | . . . . . Unauthorized Hacks . | . . . . . Terminals . | . . . . . Fabricators . | . . . . . Repair Stations . | . . . . . Recycling Units . | . . . . . Scanalyzers . | . . . . . Garrison Access . | . . . . . Data Cores Recovered . | . . . . . Used . | . . . . . Hacking Detections . | . . . . . Full Trace Events . | . . . . . Feedback Events . | . . . . . Feedback Blocked . | . . . . . Robot Schematics Acquired . | . . . . . Robots Built . | . . . . . Authchips . | . . . . . Time . | . . . . . Total Robot Build Rating . | . . . . . Part Schematics Acquired . | . . . . . Parts Built . | . . . . . Authchips . | . . . . . Time . | . . . . . Total Part Build Rating . | . . . . . Parts Repaired . | . . . . . Time . | . . . . . Parts Recycled . | . . . . . Recycled Matter . | . . . . . Retrieved Matter . | . . . . . Retrieved Components . | . . . . . Parts Scanalyzed . | . . . . . Part Schematics Acquired . | . . . . . Parts Damaged . | . . . . . Bothacking | -11 -10 -10 -10 -9 ------------ Run | Jun Mat Min Exi Min Used RIF Installer . | . . . . . Robots Hacked . | . . . . . Non-combat . | . . . . . Combat . | . . . . . Robot Hacks Applied . | . . . . . Relay Couplers Released . | . . . . . Fabnet Peak Effective % . | . . . . . Robots Rewired . | . . . . . Allies Hacked . | . . . . . Hacks Repelled . | . . . . . Allies | -11 -10 -10 -10 -9 -------- Run | Jun Mat Min Exi Min Total Allies . | . . . . . Largest Group . | . . . . . Highest-Rated Group . | . . . . . Highest-Rated Ally . | . . . . . Total Orders . | . . . . . Ally Attacks . | . . . . . Total Damage . | . . . . . Kills . | . . . . . Allies Corrupted . | . . . . . Allies Melted . | . . . . . Intel | -11 -10 -10 -10 -9 ------- Run | Jun Mat Min Exi Min Robot Analysis Total . | . . . . . Derelict Logs Recovered . | . . . . . Drone Launches . | . . . . . Drone Recoveries . | . . . . . Exploration | -11 -10 -10 -10 -9 ------------- Run | Jun Mat Min Exi Min Turns Passed 1698 | 95 367 239 944 53 Spaces Moved 1242 | 53 179 198 787 25 Core 23 | 12 7 . . 4 Treads . | . . . . . Legs 1219 | 41 172 198 787 21 Wheels . | . . . . . Hover . | . . . . . Flight . | . . . . . Fastest Speed 50 | 50 50 120 120 50 Average Speed 119 | 104 118 120 120 129 Slowest Speed 200 | 120 120 120 120 200 Overloaded Moves . | . . . . . Propulsion Burnouts . | . . . . . Robots Hopped . | . . . . . Cave-ins Triggered . | . . . . . Exploration Rate (%) 35 | 6 30 39 92 10 Regions Visited 4 Branch Regions 3 Pre-discovered Areas 1 | . . . 1 . Known Exits Taken . | . . . . . Unknown Exits Taken 4 | 1 1 1 1 . Scrap Searched 1 | . . 1 . . Spaces Dug . | . . . . . Terrain Destroyed . | . . . . . Melee . | . . . . . Projectile . | . . . . . AOE . | . . . . . Terrain Rammed . | . . . . . Walls Destroyed . | . . . . . Machines Disabled . | . . . . . Actions | -11 -10 -10 -10 -9 --------- Run | Jun Mat Min Exi Min Total 1400 | 93 289 200 786 32 Wait 86 | 31 55 . . . Move 1238 | 52 178 197 786 25 Hop . | . . . . . Pick Up 16 | 5 10 1 . . Fast Attach . | . . . . . Attach 15 | 5 9 1 . . Detach . | . . . . . Swap 1 | . 1 . . . Drop 1 | . . 1 . . Fire 43 | . 36 . . 7 Melee . | . . . . . Ram . | . . . . . Kick . | . . . . . Crush . | . . . . . Escape Stasis . | . . . . . Rewire . | . . . . . Trap . | . . . . . Miscellaneous . | . . . . . Route ------- -11/Junkyard -10/Materials -10/Mines -10/Exiles (discovered 2 exits: [*Min x2]) -9/Mines History --------- Turn | Location | Event 8 | -11/Junkyard | Discovered new exit (range 16) 96 | -11/Junkyard | Entered Materials 270 | -10/Materials | Discovered new exit (range 12) 309 | -10/Materials | Build established: Mutant 463 | -10/Materials | Entered Mines 533 | -10/Mines | Met a Derelict bent on vengeance 680 | -10/Mines | Deemed a non-threat by the Exiles lab entrance 681 | -10/Mines | Discovered new exit (range 5) 702 | -10/Mines | Entered Exiles 723 | -10/Exiles | Discovered new exit (range 15) 755 | -10/Exiles | Met 8R-AWN 778 | -10/Exiles | Met EX-HEX 846 | -10/Exiles | Met EX-DEC 895 | -10/Exiles | Visited The Gauntlet 1070 | -10/Exiles | Learned location of Zion (-7) 1114 | -10/Exiles | Discovered new exit (range 11) 1342 | -10/Exiles | Met EX-BIN 1479 | -10/Exiles | Aligned with FarCom system 1480 | -10/Exiles | Given EX-Vault access code 1646 | -10/Exiles | Entered Mines 1647 | -9/Mines | Assembled infested the area 1662 | -9/Mines | Core integrity fell below 50% 1699 | -9/Mines | Core integrity fell below 20% 1699 | -9/Mines | Destroyed by D-53 Grenadier with Mini Grenade Launcher Last Messages --------------- K-01 Serf collects debris. as-61604 destroyed. Switching to secondary target: as-96267. K-01 Serf destroyed. K-01 Serf collects debris. K-01 Serf cleans the Seismic Survey Station. as-10301 destroyed. Switching to secondary target: as-96267. Acquired 11 matter. K-01 Serf destroyed. as-96267 destroyed. as-22607 destroyed. Seismic Survey Station disabled. Aluminum Leg destroyed. Terrain Scanner destroyed. Overheating: Matter decay (-58). The unstable cave ceiling collapses. Lgt. Nuclear Core destroyed. Sml. Laser destroyed. Particle Gun destroyed. Map ----- +----------------------------------------------------+ | ?????????????????????????????????????????????????? | | ?????????????????????????????????????????????????? | | ?????????????????????????????????????????????????? | | ?????????????????????????????????????????????????? | | ?????????????????????????????????????????????????? | | ?????????????????????????????????????????????????? | | ?????????????????????????????????????????????????? | | ?????????????????????????????????????????????????? | | ?????????????????????????????????????????????????? | | ?????????????????????????????????????????????????? | | ?????????????????????????????????????????????????? | | ?????????????????????????????????????????????????? | | ?????????????????????????????????????????????????? | | ?????????????????????????????????????????????????? | | ??????????????????????????#??????????????????????? | | ?????????????? ?#????????????????????????????????? | | ?????????????a # ?#?????????????????????????????? | | ????????????? ###????????????????????????????? | | ???????????? # ###??#??????????????????????? | | ???????????? # ###?###??????????????????? | | ???????????? ## ???????????????????? | | ??????????? # #?????##????????????? | | ??????????? # ##??? ##???????????? | | ?????????? d